bitfinex/quotes_ETHUSD_20250804
["timestamp","ask_amount","ask_price","bid_price","bid_amount"]
[1754299439352,1.18087,3568.3,3568.2,2.80253349]
[1754299439511,1.18087,3568.3,3568.0,2.80263772]
[1754299439715,1.18087,3568.3,3567.9,0.14]
[1754299439950,5.43987,3568.3,3568.0,2.80267063]
[1754299440130,0.625357,3568.2,3567.9,2.94271135]
[1754299440658,0.625357,3568.2,3567.9,0.21532109]
[1754299440859,0.14,3568.1,3567.9,0.21532109]
[1754299441072,0.14,3568.1,3567.8,2.8028427]
[1754299441569,0.14,3568.1,3567.9,2.80276143]
[1754299441731,0.7605227,3568.1,3567.9,2.80276143]
[1754299441973,0.7605227,3568.1,3567.8,2.80283003]
[1754299442237,0.7605227,3568.1,3567.7,0.21520689]
[1754299442437,0.03503363,3568.0,3567.7,0.21520689]
[1754299442651,0.35981397,3567.9,3567.6,2.80299246]
[1754299442855,0.35981397,3567.9,3567.5,2.94305843]
[1754299443150,0.14,3567.8,3567.6,2.803]
[1754299443731,0.14,3567.8,3567.5,2.80304854]
[1754299444047,0.14,3567.8,3567.5,0.21517686]
[1754299444214,0.03503657,3567.7,3567.3,0.14]
[1754299444417,4.258,3567.6,3567.3,2.80322869]
[1754299444616,0.4258,3567.5,3567.4,2.80315677]
[1754299445068,4.258,3567.7,3567.5,2.80308339]
[1754299445264,4.258,3567.7,3567.6,2.80295863]
[1754299445427,0.14,3568.0,3567.8,2.80283717]
[1754299445622,4.259,3567.9,3567.8,2.80283717]
[1754299445920,4.6989,3567.9,3567.8,2.80283717]
[1754299446524,4.6989,3567.9,3567.8,2.80284769]
[1754299446751,0.4399,3567.9,3567.8,2.80284769]
[1754299446961,4.258,3567.9,3567.8,2.94284769]
[1754299450382,4.258,3567.9,3567.4,0.20888988]
[1754299450551,4.258,3567.9,3567.8,2.80284769]
[1754299450746,4.258,3567.9,3567.5,2.80302423]
[1754299450947,4.398,3567.9,3567.5,2.80308339]
[1754299451161,0.4398,3567.8,3567.5,2.80308339]
[1754299451350,0.4398,3567.8,3567.7,2.80292625]
[1754299451982,0.4398,3567.8,3567.5,2.80308339]
[1754299452182,0.4398,3567.8,3567.6,2.80300213]
[1754299452346,0.4398,3567.8,3567.4,3.15554242]
[1754299452547,0.4398,3567.8,3567.5,2.80307968]
[1754299452753,0.48378,3567.7,3567.6,2.80298555]
[1754299453291,0.48378,3567.7,3567.5,2.80308189]
[1754299453759,0.48378,3567.7,3567.4,3.15551538]
[1754299453958,0.48378,3567.7,3567.5,2.80308214]
[1754299454597,0.48378,3567.7,3567.4,0.2123809]
[1754299454891,0.48378,3567.7,3567.4,2.80313486]
[1754299455251,0.48378,3567.7,3567.5,2.80306324]
[1754299457402,0.48378,3567.7,3567.6,2.80300482]
[1754299458605,0.14,3567.9,3567.7,2.8028778]
[1754299458896,4.18087,3568.3,3567.7,2.80292625]
[1754299458897,4.258,3567.8,3567.7,2.80292625]
[1754299459199,1.18087,3568.3,3568.1,2.80261203]
[1754299459772,4.259,3568.2,3568.0,2.80267003]
[1754299459999,0.557987,3568.1,3568.0,2.80267003]
[1754299460199,0.557987,3568.1,3567.4,2.80311309]
[1754299460200,0.557987,3568.1,3567.9,2.94273764]
[1754299460552,0.557987,3568.1,3568.0,2.80269058]
[1754299464716,1.18087,3568.3,3568.2,2.80253349]
[1754299464922,5.43787,3568.3,3568.2,2.80253349]
[1754299465816,5.43687,3568.3,3568.1,2.8025871]
[1754299466200,1.18087,3568.3,3568.2,2.80253349]
[1754299466374,5.43687,3568.3,3568.2,2.80253349]
[1754299467411,5.43687,3568.3,3567.9,0.14]
[1754299467720,5.43687,3568.3,3568.1,2.80260586]
[1754299467721,0.557687,3568.2,3568.1,2.80260586]
[1754299468012,4.255,3568.2,3568.1,2.80260586]
[1754299469068,1.18087,3568.3,3568.2,2.80253349]
[1754299469268,5.43587,3568.3,3568.2,2.80253349]
[1754299471913,1.18087,3568.3,3568.2,2.80253349]
[1754299472118,5.43487,3568.3,3568.2,2.80253349]
[1754299472471,1.18087,3568.3,3568.2,2.80253349]
[1754299472704,5.43487,3568.3,3568.2,2.80253349]
[1754299473185,4.254,3568.3,3567.9,2.94274725]
[1754299473401,4.254,3568.3,3568.1,2.80253445]
[1754299474527,4.254,3568.3,3568.2,2.80253349]
[1754299475105,4.254,3568.3,3568.1,2.80258926]
[1754299475508,4.254,3568.3,3568.0,2.80266386]
[1754299475804,0.4394,3568.2,3568.1,2.80261203]
[1754299476021,0.14,3568.5,3568.4,2.80237641]
[1754299476191,0.55,3569.0,3568.5,2.80225774]
[1754299476521,0.14,3568.7,3568.5,2.80225774]
[1754299476728,10.70547596,3569.2,3568.6,2.80221935]
[1754299476883,0.14,3568.8,3568.6,2.80221935]
[1754299477086,4.254,3568.7,3568.5,2.80227342]
[1754299477312,4.254,3568.7,3568.6,2.80221935]
[1754299478553,4.254,3568.7,3568.4,2.80236255]
[1754299478691,4.254,3568.7,3568.3,0.924]
[1754299478894,0.9894,3568.6,3568.3,3.58643502]
[1754299479090,0.14,3568.5,3568.4,2.80237641]
[1754299479403,4.254,3568.5,3568.3,3.58642571]
[1754299479614,4.254,3568.5,3568.4,2.80237641]
[1754299479812,0.14,3568.7,3568.5,2.80227509]
[1754299480012,0.14,3568.8,3568.6,2.80221935]
[1754299480215,4.254,3568.7,3568.6,2.80221935]
[1754299481327,4.254,3568.7,3568.6,2.80216053]
[1754299481628,4.254,3568.7,3568.4,2.80231668]
[1754299481629,4.254,3568.7,3568.5,2.80227234]
[1754299481829,4.254,3568.7,3568.4,2.80234054]
[1754299482030,4.254,3568.7,3568.4,2.80234419]
[1754299482194,4.6934,3568.7,3568.4,2.80234419]
[1754299482394,4.6934,3568.7,3568.4,2.80231881]
[1754299482593,4.6934,3568.7,3568.5,2.80229283]
[1754299482892,4.6934,3568.7,3568.5,2.73779283]
[1754299483127,4.6934,3568.7,3568.3,0.14]
[1754299483355,0.14,3568.4,3567.9,0.14]
[1754299483507,4.257,3568.3,3568.2,2.80247522]
[1754299485910,0.55,3569.0,3568.3,2.80245495]
[1754299486233,0.14,3568.6,3568.4,2.80234327]
[1754299486549,4.257,3568.5,3568.4,2.80234327]
[1754299487731,2.6554,3569.1,3568.4,2.80234327]
[1754299487938,0.14,3568.8,3568.6,2.80217683]
[1754299488106,4.256,3568.7,3568.6,2.80217683]
[1754299490546,0.55,3569.1,3568.6,2.80217683]
[1754299490859,6.735,3569.2,3568.9,2.80197922]
[1754299491086,4.255,3569.0,3568.6,2.80220779]
[1754299491260,4.255,3569.0,3568.5,0.14]
[1754299491427,4.255,3569.0,3568.8,2.80200027]
[1754299492653,4.255,3569.0,3568.9,2.8019838]
[1754299493062,4.255,3569.0,3568.7,2.80210774]
[1754299493966,0.03502479,3568.9,3568.6,2.80219653]
[1754299494274,1.66650248,3568.9,3568.4,2.80232689]
[1754299494430,0.14,3568.8,3568.5,2.80228693]
[1754299494631,4.254,3568.7,3568.5,2.80228693]
[1754299495183,4.254,3568.7,3568.3,0.14]
[1754299495546,4.254,3568.7,3568.4,2.80237091]
[1754299496445,4.254,3568.7,3568.3,0.14]
[1754299496768,4.254,3568.7,3568.4,2.80230835]
[1754299497130,0.14,3568.8,3568.6,2.80221935]
[1754299497330,4.254,3568.7,3568.5,2.80226518]
[1754299497544,4.254,3568.7,3568.4,2.80232399]
[1754299497865,4.254,3568.7,3568.3,2.94242131]
[1754299498167,4.254,3568.6,3568.5,2.80229788]
[1754299498394,4.254,3568.6,3568.4,0.002]
[1754299499873,4.254,3568.6,3568.4,2.80435583]
[1754299500039,4.254,3568.6,3568.5,2.80229788]
[1754299500439,4.254,3568.6,3568.4,0.002]
[1754299500841,4.254,3568.6,3568.4,2.80436438]
[1754299501286,4.254,3568.6,3568.4,0.002]
[1754299501447,0.58502872,3568.5,3568.4,0.002]
[1754299501643,0.69,3568.5,3568.4,0.002]
[1754299501961,3.49229788,3568.5,3568.4,0.002]
[1754299502392,0.69,3568.5,3568.4,0.002]
[1754299502570,1.52557104,3568.5,3568.4,0.002]
[1754299504821,4.32786892,3568.5,3568.4,0.002]
[1754299505185,1.52557104,3568.5,3568.4,0.002]
[1754299506915,4.32786892,3568.5,3568.4,0.002]
[1754299507232,1.52557104,3568.5,3568.4,0.002]
[1754299511537,4.32786892,3568.5,3568.4,0.002]
[1754299511734,4.36289764,3568.5,3568.4,0.002]
[1754299513338,50.61130399,3568.5,3568.4,0.002]
[1754299513526,50.61130399,3568.5,3568.4,1e-08]
[1754299513527,50.98391466,3568.5,3568.4,1e-08]
[1754299514129,38.03761203,3568.1,3568.0,0.002]
[1754299514364,56.75729417,3568.1,3568.0,0.002]
[1754299515068,56.89729417,3568.1,3568.0,0.002]
[1754299518184,45.2988591,3568.1,3568.0,0.002]
[1754299518358,45.2998591,3568.1,3568.0,0.002]
[1754299519079,15.2998591,3568.1,3568.0,0.002]
[1754299519385,10.0648591,3568.1,3568.0,0.002]
[1754299519786,13.6148591,3568.1,3568.0,0.002]
[1754299521549,9.3608591,3568.1,3568.0,0.002]
[1754299521746,13.6148591,3568.1,3568.0,0.002]
[1754299522385,9.3608591,3568.1,3568.0,0.002]
[1754299522588,13.6158591,3568.1,3568.0,0.002]
[1754299524695,6.55824707,3568.1,3568.0,0.002]
[1754299524933,13.6148591,3568.1,3568.0,0.002]
[1754299525216,10.74661203,3568.1,3568.0,0.002]
[1754299525382,7.944,3568.1,3568.0,0.002]
[1754299527012,10.74661203,3568.1,3568.0,0.002]
[1754299527330,3.69,3568.1,3568.0,0.002]
[1754299527485,0.14,3568.1,3568.0,0.002]
[1754299527682,0.14,3568.1,3568.0,2.80469058]
[1754299527683,4.394,3568.1,3568.0,2.80469058]
[1754299527913,4.254,3568.1,3568.0,2.80469058]
[1754299528092,7.05,3568.3,3568.0,2.80469058]
[1754299528093,0.14,3568.3,3568.1,2.80256411]
[1754299528289,4.254,3568.2,3568.1,2.80256411]
[1754299529379,0.14,3568.4,3568.3,2.80245495]
[1754299529608,4.254,3568.4,3568.3,2.80245495]
[1754299530406,0.14,3568.6,3568.4,2.80234575]
[1754299530727,0.69,3568.6,3568.5,2.80229788]
[1754299530941,4.944,3568.6,3568.5,2.80229788]
[1754299531610,7.05,3569.0,3568.8,2.80204252]
[1754299531929,4.394,3568.9,3568.8,2.80206231]
[1754299533306,0.551,3569.1,3568.9,2.80192278]
[1754299533513,4.394,3569.0,3568.9,2.80192278]
[1754299534009,4.394,3569.0,3568.8,3.00892931]
[1754299534331,4.394,3569.0,3568.8,2.80203588]
[1754299534709,4.394,3569.0,3568.7,2.8021397]
[1754299534890,4.394,3569.0,3568.6,2.80220116]
[1754299535094,4.394,3569.0,3568.4,2.94237465]
[1754299535627,4.394,3569.0,3568.5,2.8022639]
[1754299536222,4.394,3569.0,3568.5,2.80229223]
[1754299536432,4.394,3569.0,3568.4,2.94235217]
[1754299537341,4.394,3569.0,3568.6,2.80217062]
[1754299538236,4.394,3569.0,3568.5,2.80226706]
[1754299538736,7.19592321,3569.0,3568.4,2.94237603]
[1754299539034,4.394,3569.0,3568.5,2.8022711]
[1754299539340,4.394,3569.0,3568.6,2.80221935]
[1754299539633,4.394,3569.0,3568.5,2.80226346]
[1754299540723,6.12235065,3569.0,3568.4,0.14]
[1754299540918,0.14,3568.5,3568.0,0.002]
[1754299541123,0.14,3568.1,3568.0,0.002]
[1754299541430,4.943,3568.1,3568.0,0.002]
[1754299541623,9.4032586,3568.1,3568.0,0.002]
[1754299542150,6.60064657,3568.1,3568.0,0.002]
[1754299542455,9.4032586,3568.1,3568.0,0.002]
[1754299542963,9.4032586,3568.1,3567.6,0.002]
[1754299542964,6.35292625,3567.7,3567.6,0.002]
[1754299543163,22.34636132,3567.7,3567.6,0.002]
[1754299543462,25.21460839,3567.7,3567.6,0.002]
[1754299546627,25.21560839,3567.7,3567.6,0.002]
[1754299548645,25.21560839,3567.7,3567.6,0.002]
[1754299550284,55.21560839,3567.7,3567.6,0.002]
[1754299550978,0.55,3566.3,3565.6,2.80449992]
[1754299551199,4.255,3566.2,3565.7,2.80448506]
[1754299551889,0.14,3566.1,3565.8,0.21535959]
[1754299553482,0.14,3566.1,3565.6,2.94456436]
[1754299554185,0.17505229,3566.1,3565.6,0.14]
[1754299554400,0.17505229,3566.1,3564.9,3.0]
[1754299554401,0.69,3566.1,3564.8,2.80516072]
[1754299554681,0.69,3566.1,3565.6,2.80454106]
[1754299554888,0.69,3566.1,3565.4,0.14]
[1754299555130,0.69,3566.1,3565.8,2.80441779]
[1754299555490,0.14,3566.1,3566.0,2.80626247]
[1754299555805,4.257,3566.1,3566.0,2.80626247]
[1754299556208,4.257,3566.1,3566.0,0.002]
[1754299556522,4.947,3566.1,3566.0,0.002]
[1754299556890,4.397,3566.1,3566.0,2.80626247]
[1754299557598,4.397,3566.1,3566.0,0.002]
[1754299558095,4.397,3566.1,3566.0,2.80626247]
[1754299559016,0.14,3566.1,3566.0,2.80626247]
[1754299559214,4.399,3566.1,3566.0,2.80626247]
[1754299560426,4.259,3566.1,3566.0,2.80626247]
[1754299561901,4.259,3566.1,3566.0,0.002]
[1754299563643,4.259,3566.1,3566.0,2.80626247]
[1754299565537,4.259,3566.1,3566.0,0.002]
[1754299571724,4.256,3566.1,3566.0,0.002]
[1754299574337,0.14,3566.2,3566.0,2.80625188]
[1754299574661,4.256,3566.1,3566.0,0.002]
[1754299577050,4.256,3566.1,3566.0,2.80626247]
[1754299578578,4.256,3566.1,3566.0,0.002]
[1754299579463,4.6956,3566.1,3566.0,0.002]
[1754299580565,7.49978384,3566.1,3566.0,0.002]
[1754299580745,4.6956,3566.1,3566.0,0.002]
[1754299581794,7.49978384,3566.1,3566.0,0.002]
[1754299585961,8.04978384,3566.1,3566.0,0.002]
[1754299586190,19.64821891,3566.1,3566.0,0.002]
[1754299586888,21.33321891,3566.1,3566.0,0.002]
[1754299587094,19.64821891,3566.1,3566.0,0.002]
[1754299587787,22.64821891,3566.1,3566.0,0.002]
[1754299589759,52.64821891,3566.1,3566.0,0.002]
[1754299589952,53.02082958,3566.1,3566.0,1e-08]
[1754299590157,53.22947858,3566.1,3566.0,1e-08]
[1754299590398,54.91447858,3566.1,3566.0,1e-08]
[1754299591193,54.54186791,3566.1,3566.0,1e-08]
[1754299592196,54.54586791,3566.1,3566.0,1e-08]
[1754299593399,50.28586791,3566.1,3566.0,1e-08]
[1754299593563,52.85986791,3566.1,3566.0,1e-08]
[1754299593759,52.30986791,3566.1,3566.0,1e-08]
[1754299594096,14.24378384,3566.1,3566.0,1e-08]
[1754299594299,13.80418384,3566.1,3566.0,1e-08]
[1754299594459,28.40261891,3566.1,3566.0,1e-08]
[1754299595094,28.95261891,3566.1,3566.0,1e-08]
[1754299595393,58.95261891,3566.1,3566.0,1e-08]
[1754299595598,59.32522958,3566.1,3566.0,1e-08]
[1754299595787,63.87847665,3566.1,3566.0,1e-08]
[1754299596175,63.50586598,3566.1,3566.0,1e-08]
[1754299596899,63.50786598,3566.1,3566.0,1e-08]
[1754299597276,33.50786598,3566.1,3566.0,1e-08]
[1754299597475,29.24586598,3566.1,3566.0,1e-08]
[1754299597864,33.50786598,3566.1,3566.0,1e-08]
[1754299598059,15.96243091,3566.1,3566.0,1e-08]
[1754299598262,20.22543091,3566.1,3566.0,1e-08]
[1754299600460,15.96243091,3566.1,3566.0,1e-08]
[1754299600666,20.22543091,3566.1,3566.0,1e-08]
[1754299601097,15.96243091,3566.1,3566.0,1e-08]
[1754299601415,20.22443091,3566.1,3566.0,1e-08]
[1754299607400,21.90943091,3566.1,3566.0,1e-08]
[1754299612021,17.64743091,3566.1,3566.0,1e-08]
[1754299612224,21.90643091,3566.1,3566.0,1e-08]
[1754299617421,51.90643091,3566.1,3566.0,1e-08]
[1754299617600,52.27904158,3566.1,3566.0,1e-08]
[1754299618535,0.55,3564.7,3564.5,0.14]
[1754299618735,4.29206704,3564.6,3564.5,0.14]
[1754299619236,4.43206704,3564.6,3564.0,2.94579119]
[1754299619402,0.14,3564.6,3564.2,2.80560734]
[1754299619736,4.257,3564.5,3564.1,2.80772573]
[1754299619899,4.257,3564.5,3564.1,0.20802527]
[1754299620299,3.35528801,3564.7,3564.1,0.002]
[1754299620300,0.55,3564.4,3564.1,0.002]
[1754299620531,4.403,3564.3,3564.1,0.002]
[1754299620834,4.403,3564.3,3564.1,2.80775571]
[1754299621042,6.741,3564.7,3564.2,2.80567869]
[1754299621241,0.14,3564.5,3564.1,2.80769499]
[1754299621534,4.263,3564.4,3564.3,2.80559997]
[1754299622838,6.741,3564.7,3564.4,2.80552126]
[1754299623134,4.264,3564.6,3564.2,0.14]
[1754299623334,4.264,3564.6,3564.3,2.80552913]
[1754299623941,4.29906704,3564.6,3564.2,2.94561772]
[1754299625045,0.55,3564.5,3564.2,0.14]
[1754299625208,4.263,3564.4,3564.2,2.80567586]
[1754299625407,0.14,3564.3,3564.2,2.80567586]
[1754299625637,4.263,3564.4,3564.3,2.80559997]
[1754299625841,6.741,3564.7,3564.4,2.80552126]
[1754299625842,0.14,3564.5,3564.4,2.80552126]
[1754299626009,4.266,3564.5,3564.4,2.80552126]
[1754299627539,4.266,3564.5,3564.1,0.002]
[1754299627731,6.881,3564.7,3564.1,0.142]
[1754299627932,4.266,3564.6,3564.4,2.80548768]
[1754299628323,4.266,3564.6,3564.3,2.80556439]
[1754299628753,4.267,3564.5,3564.4,2.80552126]
[1754299629044,6.741,3564.7,3564.6,2.80536385]
[1754299629231,11.008,3564.7,3564.6,2.80536385]
[1754299630007,6.741,3564.7,3564.6,2.80536385]
[1754299630208,4.267,3564.7,3564.6,2.80536385]
[1754299630417,4.267,3564.7,3564.6,3.56417757]
[1754299632743,0.14,3565.2,3564.6,3.56417757]
[1754299632948,4.266,3565.1,3565.0,2.80498307]
[1754299633246,0.14,3565.2,3565.1,2.8049704]
[1754299633548,6.741,3565.5,3565.4,2.80473439]
[1754299633755,11.007,3565.5,3565.4,2.80473439]
[1754299638519,6.741,3565.5,3565.4,2.80473439]
[1754299638724,11.005,3565.5,3565.4,3.51968983]
[1754299640856,0.001,3566.1,3566.0,2.80426247]
[1754299641028,4.265,3566.1,3566.0,2.80426247]
[1754299641359,4.265,3566.1,3566.0,2.94426247]
[1754299642270,4.265,3566.1,3566.0,3.15369757]
[1754299647068,4.265,3566.1,3565.7,2.80444225]
[1754299647069,4.83236693,3566.1,3565.7,2.80444225]
[1754299647374,0.03505328,3566.0,3565.7,2.80449815]
[1754299647554,4.262,3565.9,3565.8,2.80441361]
[1754299648977,4.262,3565.9,3565.5,0.35013834]
[1754299649175,4.262,3565.9,3565.7,2.80447324]
[1754299649488,4.262,3565.9,3565.7,2.80446684]
[1754299650480,4.262,3565.9,3565.5,3.154776]
[1754299650481,4.262,3565.9,3565.8,2.80441976]
[1754299651462,4.262,3565.9,3565.7,2.80447542]
[1754299651790,4.263,3565.9,3565.7,2.80447542]
[1754299651995,4.263,3565.9,3565.6,2.80456101]
[1754299652977,4.263,3565.9,3565.5,0.35013834]
[1754299653154,4.263,3565.9,3565.6,2.80457012]
[1754299653894,4.263,3565.9,3565.5,3.1547931]
[1754299654800,4.263,3565.9,3565.6,2.80457154]
[1754299655491,4.263,3565.9,3565.5,3.15475914]
[1754299658400,4.263,3565.9,3565.6,2.80456713]
[1754299659205,4.263,3565.9,3565.7,2.80446283]
[1754299662507,4.263,3565.9,3565.8,2.80441976]
[1754299662508,0.001,3565.9,3565.8,2.80441976]
[1754299662666,4.258,3565.9,3565.8,2.94441976]
[1754299668117,4.258,3565.9,3565.8,3.54033273]
[1754299668287,0.001,3565.9,3565.8,3.54033273]
[1754299668476,4.258,3565.9,3565.8,3.54033273]
[1754299680722,4.257,3565.9,3565.8,3.54033273]
[1754299682590,0.001,3565.9,3565.8,6.54033273]
[1754299683018,0.001,3565.9,3565.8,6.65268573]
[1754299691539,0.001,3565.9,3565.8,6.05677276]
[1754299691908,0.001,3565.9,3565.8,5.94441976]
[1754299692107,0.001,3565.9,3565.8,2.94441976]
[1754299692510,0.001,3565.9,3565.8,0.14]
[1754299692704,0.001,3565.9,3565.6,0.002]
[1754299692921,0.43030533,3565.9,3565.6,0.002]
[1754299693245,0.43030533,3565.9,3565.7,2.80449841]
[1754299693541,0.43030533,3565.9,3565.8,2.80441976]
[1754299696413,0.43030533,3565.9,3565.6,0.002]
[1754299696619,0.48273053,3565.8,3565.6,0.002]
[1754299696856,4.256,3565.7,3565.6,0.002]
[1754299698856,4.256,3565.7,3565.6,2.80657706]
[1754299699068,0.14,3565.8,3565.7,2.80449841]
[1754299699237,4.256,3565.8,3565.7,2.80449841]
[1754299705238,4.256,3565.8,3565.7,2.94449841]
[1754299712712,0.001,3565.9,3565.8,2.80441976]
[1754299712995,0.001,3565.9,3565.8,15.27941646]
[1754299713885,0.001,3565.9,3565.8,3.68098139]
[1754299714086,0.001,3565.9,3565.8,2.80441976]
[1754299722603,3.35441976,3565.8,3565.6,0.002]
[1754299722779,3.38955464,3565.7,3565.6,0.002]
[1754299726893,6.38955464,3565.7,3565.6,0.002]
[1754299727098,8.03949841,3565.7,3565.6,0.002]
[1754299727412,10.72067483,3565.7,3565.6,0.002]
[1754299728124,10.83310383,3565.7,3565.6,0.002]
[1754299730116,15.08910383,3565.7,3565.6,0.002]
[1754299730922,45.08910383,3565.7,3565.6,0.002]
[1754299731306,35.03965572,3565.5,3565.4,1e-08]
[1754299731483,51.79995594,3565.5,3565.4,1e-08]
[1754299732024,36.35481305,3565.3,3565.2,1e-08]
[1754299732230,40.61081305,3565.3,3565.2,1e-08]
[1754299732592,40.75081305,3565.3,3565.2,1e-08]
[1754299733522,42.43581305,3565.3,3565.2,1e-08]
[1754299733721,45.30406012,3565.3,3565.2,1e-08]
[1754299737290,45.41651012,3565.3,3565.2,1e-08]
[1754299743661,52.46651012,3565.3,3565.2,1e-08]
[1754299747361,51.91651012,3565.3,3565.2,1e-08]
[1754299749173,52.46651012,3565.3,3565.2,1e-08]
[1754299749457,52.83912079,3565.3,3565.2,1e-08]
[1754299749672,38.0399704,3565.1,3564.8,0.002]
[1754299749823,63.31858189,3565.1,3564.8,0.002]
[1754299750026,63.45858189,3565.1,3564.8,0.002]
[1754299751004,63.57103589,3565.1,3564.8,0.002]
[1754299751856,8.04012777,3564.9,3564.8,0.002]
[1754299752056,8.04012777,3564.9,3564.4,0.002]
[1754299752057,5.04044255,3564.5,3564.4,0.002]
[1754299752281,28.9249899,3564.5,3564.4,0.002]
[1754299752594,29.00239287,3564.5,3564.4,0.002]
[1754299753000,62.00239287,3564.5,3564.4,0.002]
[1754299756997,57.74539287,3564.5,3564.4,0.002]
[1754299757199,20.2649578,3564.5,3564.4,0.002]
[1754299757499,20.4049578,3564.5,3564.4,0.002]
[1754299757866,62.00339287,3564.5,3564.4,0.002]
[1754299758508,62.00339287,3564.5,3564.4,1e-08]
[1754299762079,2.235,3563.9,3563.8,0.002]
[1754299762302,54.07242386,3563.9,3563.8,0.002]
[1754299762617,0.55,3563.2,3562.1,0.14]
[1754299762769,0.55,3563.2,3561.7,2.80757816]
[1754299762770,2.80688755,3562.7,3561.9,2.80742906]
[1754299762969,0.14,3562.0,3561.9,2.80749038]
[1754299763164,4.948,3562.0,3561.9,2.80749038]
[1754299763671,0.14,3562.1,3561.9,2.80749038]
[1754299763970,4.258,3562.0,3561.9,3.36899727]
[1754299764803,4.258,3562.0,3561.9,2.80749038]
[1754299766330,4.258,3562.0,3561.8,0.20600838]
[1754299766490,4.258,3562.0,3561.9,2.80749038]
[1754299768738,0.55,3562.8,3561.9,11.59843507]
[1754299768907,0.69,3562.5,3562.4,2.80704715]
[1754299769496,4.949,3562.5,3562.4,2.80704715]
[1754299770035,0.55,3562.8,3562.6,2.8069365]
[1754299770198,0.69,3562.6,3562.5,2.80700209]
[1754299772430,0.14,3562.6,3562.5,2.80700209]
[1754299772631,4.259,3562.6,3562.5,3.36843522]
[1754299776541,0.14,3562.8,3562.6,2.80693265]
[1754299776744,4.259,3562.7,3562.5,2.80699248]
[1754299777254,0.14,3562.8,3562.6,2.80692251]
[1754299777451,4.259,3562.7,3562.6,2.80692251]
[1754299779856,0.14,3562.8,3562.6,2.80692251]
[1754299780148,4.259,3562.7,3562.6,2.80692251]
[1754299780357,0.14,3562.8,3562.6,2.80692251]
[1754299780568,4.259,3562.7,3562.6,2.80692251]
[1754299781643,0.69,3562.8,3562.7,2.80685996]
[1754299781849,4.949,3562.8,3562.7,2.80685996]
[1754299782350,7.04999999,3563.0,3562.8,2.80674287]
[1754299782569,4.259,3562.8,3562.3,0.14]
[1754299782872,4.259,3562.8,3562.7,2.80685996]
[1754299783472,4.259,3562.8,3562.6,2.80690611]
[1754299783971,4.259,3562.8,3561.8,0.21068799]
[1754299783972,0.58508574,3562.7,3561.8,0.21068799]
[1754299784194,0.55,3562.6,3562.0,2.80736278]
[1754299784374,0.55,3562.4,3562.0,2.80736278]
[1754299784691,0.55,3562.4,3562.1,2.8073251]
[1754299784879,0.69,3562.3,3562.2,2.80724101]
[1754299787288,0.69,3562.3,3562.1,2.80729971]
[1754299787591,4.258,3562.2,3562.1,2.80729971]
[1754299794401,3.0,3562.9,3562.1,0.5964627]
[1754299794605,4.809,3562.8,3562.6,2.80688525]
[1754299795001,4.949,3562.7,3562.6,2.80688525]
[1754299795208,4.259,3562.7,3562.6,3.36827916]
[1754299795443,7.18999999,3563.0,3562.9,2.8067024]
[1754299795569,11.44899999,3563.0,3562.9,2.8067024]
[1754299795768,11.99899999,3563.0,3562.9,2.8067024]
[1754299798071,11.99899999,3563.0,3562.8,2.80674847]
[1754299798781,11.99899999,3563.0,3562.9,2.8067024]
[1754299799221,11.99899999,3563.0,3562.8,2.8067487]
[1754299799824,11.99899999,3563.0,3562.8,2.80673555]
[1754299800340,11.99899999,3563.0,3562.5,0.14]
[1754299800508,4.258,3562.9,3562.8,2.80677273]
[1754299800705,7.04999999,3563.0,3562.9,2.8067024]
[1754299801032,7.04999999,3563.0,3562.9,3.36804991]
[1754299801328,1.33130722,3563.4,3563.3,2.80638733]
[1754299801724,5.58930722,3563.4,3563.3,2.94638733]
[1754299803739,6.745,3564.1,3564.0,2.80583613]
[1754299803895,11.003,3564.1,3564.0,2.94583613]
[1754299804822,11.003,3564.1,3564.0,3.52101217]
[1754299805128,11.002,3564.1,3564.0,3.52101217]
[1754299805326,0.001,3565.2,3564.7,2.80528515]
[1754299805508,4.258,3564.8,3564.7,2.80528515]
[1754299810919,4.258,3564.8,3564.7,2.94528515]
[1754299811112,4.258,3564.8,3564.7,3.80089527]
[1754299812923,4.258,3564.8,3564.7,2.94528515]
[1754299816354,4.258,3564.8,3564.7,2.80528515]
[1754299820738,0.001,3564.8,3564.7,2.80528515]
[1754299821051,4.256,3564.8,3564.7,2.80528515]
[1754299821760,4.256,3564.8,3564.7,2.94528515]
[1754299821966,4.256,3564.8,3564.7,3.52035102]
[1754299825763,4.256,3564.8,3564.7,2.80528515]
[1754299830878,0.001,3564.8,3564.7,2.80528515]
[1754299831043,4.256,3564.8,3564.7,2.80528515]
[1754299833639,0.001,3564.8,3564.7,2.80528515]
[1754299833839,4.256,3564.8,3564.7,2.80528515]
[1754299836835,4.256,3564.8,3564.7,3.38035066]
[1754299838416,0.001,3564.8,3564.7,3.38035066]
[1754299838911,4.256,3564.8,3564.7,3.38035066]
[1754299841108,0.001,3564.8,3564.7,3.38035066]
[1754299841309,1e-08,3564.8,3564.7,14.99923466]
[1754299841635,1e-08,3564.8,3564.7,17.97878573]
[1754299847717,1e-08,3564.8,3564.7,6.38035066]
[1754299878498,1e-08,3564.8,3564.7,17.97878573]
[1754299881695,1e-08,3564.8,3564.7,5.80528515]
[1754299883683,1e-08,3564.8,3564.7,2.80528515]
[1754299890011,1e-08,3564.8,3564.7,5.80528515]
[1754299902725,1e-08,3564.8,3564.7,5.91767115]
[1754299904431,1e-08,3564.8,3564.7,10.16867115]
[1754299904633,1e-08,3564.8,3564.7,12.64011876]